[Event "1st Chessable Sunway Formentera 2022"]
[Site "Formentera Punta Prima"]
[Date "2022.05.06"]
[Round "8.7"]
[White "Soham Das"]
[Black "Batsiashvili, Nino"]
[Result "1/2-1/2"]
[ECO "C54"]
[WhiteElo "2266"]
[BlackElo "2463"]
[Annotator "TA"]
[PlyCount "130"]
[EventDate "2022.05.05"]
[EventType "swiss"]
[EventCountry "ESP"]
[SourceTitle "playchess.com"]
[Source "ChessBase"]
[SourceQuality "1"]
[TimeControl "40/5400+30:1800+30"]

{[%evp 20,130,31,31,113,109,131,83,91,91,90,91,121,104,114,79,108,75,104,68,104,21,47,43,68,66,73,58,58,54,59,8,20,11,70,0,15,-22,60,56,64,31,27,28,99,27,61,0,0,-25,0,-97,-102,-97,-99,-110,-110,-89,25,20,65,66,72,33,33,30,35,16,28,18,10,15,158,147,147,156,144,122,156,145,141,140,158,144,141,141,152,139,156,112,114,95,112,90,92,0,0,0,0,0,0,0,0,0,0,0,0,0,0,0,0,0,0]} 1. e4 {[%emt 0:04:05]} e5 {[%emt 0:00:10]} 2. Nf3 {[%emt 0:00:07]} Nc6 {[%emt 0:00:04]} 3. Bc4 {[%emt 0:07:07]} Bc5 {[%emt 0:00:49]} 4. d3 {[%emt 0:01:05]} Nf6 {[%emt 0:00:09]} 5. Nbd2 {[%emt 0:00:14]} d6 {[%emt 0:01:30]} 6. c3 {[%emt 0:02:29]} a6 {[%emt 0:00:27]} 7. Bb3 {[%emt 0:00:05]} Ba7 {[%emt 0:02:20]} 8. O-O {[%emt 0:02:23]} O-O {[%emt 0:00:07]} 9. h3 {[%emt 0:00:51]} Ne7 {[%emt 0:01:04]} 10. Re1 {[%emt 0:05:16]} Ng6 {[%emt 0:00:25]} 11. Nf1 {[%emt 0:00:04]} d5 {[%emt 0:02:28] C54: Giuoco Piano: 4 c3 Nf6, main lines with 5 d4 and 5 d3.} (11... Be6 $14) 12. exd5 $1 $16 {[%emt 0:11:55] [#]} Qd6 $146 {[%emt 1:26:57]} ({Predecessor:} 12... Nxd5 13. Nxe5 Nxe5 14. Rxe5 Qf6 15. d4 Nf4 16. Bxf4 Qxf4 17. Qd2 Qf6 18. Rae1 Bd7 19. Ng3 {1-0 (27) Fedorov,A (2573)-Szadkowski,K (2291) Katowice 2017}) 13. c4 {[%emt 0:21:18]} (13. Be3 $142) 13... c6 {[%emt 0:00:00] White is better.} 14. dxc6 {[%emt 0:02:08]} bxc6 {[%emt 0:00:00]} 15. Ng3 {[%emt 0:00:42]} Rd8 {[%emt 0:00:00]} 16. Bc2 {[%emt 0:00:20]} Rb8 {[%emt 0:00:00]} 17. b3 {[%emt 0:00:50]} h6 {[%emt 0:00:00]} (17... Qc5 $2 18. Be3 Qe7 19. Bxa7 Qxa7 20. Nxe5 $18) 18. Be3 {[%emt 0:06:46]} Bd4 {[%emt 0:00:00]} 19. Rb1 {[%emt 0:09:42]} c5 {[%emt 0:00:00]} 20. Nd2 {[%emt 0:02:43]} (20. Bd2 $16) 20... Nh4 {[%emt 0:00:00]} 21. Nde4 {[%emt 0:02:28]} Nxe4 {[%emt 0:00:00]} 22. dxe4 {[%emt 0:00:07]} ({Reject} 22. Nxe4 Qg6 23. Ng3 (23. g4 $2 f5 $19) 23... Bb7 24. Bxd4 Rxd4 25. Rxe5 Bxg2 $17) 22... Qf6 {[%emt 0:00:00]} 23. Qe2 {[%emt 0:03:08]} a5 {[%emt 0:00:00]} 24. Red1 {[%emt 0:03:12]} Rb6 {[%emt 0:00:00]} 25. Qh5 {[%emt 0:03:57]} ({White should play} 25. Kh2 $14) 25... Rbd6 $11 {[%emt 0:00:00]} 26. Rf1 {[%emt 0:01:57]} Ng6 {[%emt 0:00:00]} (26... Qe7 $11 27. Rbd1 Bb7) 27. Ne2 {[%emt 0:03:16]} (27. Nf5 $14) 27... Qe7 {[%emt 0:00:00]} 28. Rbd1 {[%emt 0:04:59]} Bb7 {[%emt 0:00:00]} (28... Bxe3 $11 29. fxe3 Rd2 30. Rxd2 Rxd2) 29. Ng3 {[%emt 0:00:37]} ({Don't play} 29. Nxd4 exd4 30. Bc1 d3 $11) 29... Nh4 {[%emt 0:00:00]} 30. Bxd4 {[%emt 0:01:06]} (30. Bd2 {looks sharper.} Rg6 31. Kh2 Rdd6 32. Be1) 30... cxd4 {[%emt 0:00:00]} 31. Bd3 {[%emt 0:00:27]} Bc8 {[%emt 0:00:00] [#]} (31... Rb6 $11) 32. Kh1 {[%emt 0:00:28]} (32. Nf5 $1 $16 {[%cal Rf5e7]} Nxf5 33. exf5) 32... Ng6 {[%emt 0:00:00]} 33. Ne2 {[%emt 0:00:36]} (33. Nf5 $14 Bxf5 34. exf5) 33... Rf6 {[%emt 0:00:00]} 34. Bb1 {[%emt 0:00:27]} Bb7 {[%emt 0:00:00][%mdl 1024] Black has compensation.} (34... a4 $5) 35. Ng3 {[%emt 0:00:32]} (35. f4 $11 {remains equal.}) 35... Nf4 $17 {[%emt 0:00:00]} 36. Qg4 {[%emt 0:00:29]} Rg6 {[%emt 0:00:00]} 37. Qf3 {[%emt 0:00:21]} Qg5 {[%emt 0:00:00]} 38. Rg1 {[%emt 0:00:20]} Qf6 {[%emt 0:00:34]} (38... Rf6 $17 {[%cal Of4h3] And now ...Nxh3! would win.} 39. Qg4 Qxg4 40. hxg4 Rg6) 39. Ne2 $11 {[%emt 0:00:52]} Qh4 {[%emt 0:03:11]} 40. Nxf4 {[%emt 0:00:00]} exf4 {[%emt 0:00:00]} 41. Kh2 {[%emt 0:06:46]} f5 {[%emt 0:03:49]} 42. Qe2 {[%emt 0:00:49]} Re6 {[%emt 0:05:10][%cal Rf5e4]} 43. f3 {[%emt 0:00:26][%cal Bf2f3,Bf3e4,Be4e5][%mdl 32]} fxe4 {[%emt 0:06:10]} 44. fxe4 {[%emt 0:00:03]} Rg6 {[%emt 0:01:11]} 45. Rgf1 Bc8 {[%emt 0:00:30] [#]} (45... Rg3 $11 46. Rf3 Qh5) 46. Qf2 $1 $16 Qg5 {[%emt 0:00:30]} 47. e5 {Prevents Rf6.} Qg3+ {[%emt 0:00:30]} 48. Kh1 d3 {[%emt 0:00:30]} 49. Qxg3 Rxg3 {[%emt 0:00:30]} 50. Rxf4 Bb7 {[%emt 0:00:30]} 51. Rf2 Rxh3+ {[%emt 0:00:30]} 52. Kg1 Rg3 {[%emt 0:00:30]} 53. Rfd2 Be4 {[%emt 0:00:30]} 54. Re1 Rd4 {[%emt 0:00:30]} 55. Kh2 Rg5 {[%emt 0:00:30]} 56. e6 {Strongly threatening e7.} Kf8 {[%emt 0:00:30]} 57. Red1 ({White should try} 57. Re3 $16) 57... Ke7 $1 $11 {[%emt 0:00:30][%cal Oe4f3] The position is equal.} ({Don't do} 57... Rh5+ 58. Kg1 $16) 58. Bxd3 Bf3 {[%emt 0:00:30]} 59. Re1 Bxg2 {[%emt 0:00:30]} 60. Rxg2 Rxg2+ {[%emt 0:00:30]} 61. Kxg2 Rxd3 {[%emt 0:00:30] KR-KR} 62. Re2 Rc3 {[%emt 0:00:30][%cal Oa5a4]} 63. Kh2 a4 {[%emt 0:00:30]} 64. Rg2 g5 {[%emt 0:00:30]} 65. Rg3 Rxg3 {[%emt 0:00:30] White really could win this.  Weighted Error Value: White=0.23 (precise) /Black=0.25 (precise)} 1/2-1/2

[Event "1st Chessable Sunway Formentera 2022"]
[Site "Formentera Punta Prima"]
[Date "2022.05.06"]
[Round "8.8"]
[White "Eugene, Floryan"]
[Black "Romanishin, Oleg M"]
[Result "0-1"]
[ECO "C55"]
[WhiteElo "2370"]
[BlackElo "2400"]
[Annotator "TA"]
[PlyCount "190"]
[EventDate "2022.05.05"]
[EventType "swiss"]
[EventCountry "ESP"]
[SourceTitle "playchess.com"]
[Source "ChessBase"]
[SourceQuality "1"]
[TimeControl "40/5400+30:1800+30"]

{[%evp 11,190,10,14,7,25,22,31,7,5,22,21,-20,33,33,33,24,29,34,39,15,15,23,21,7,15,8,5,4,4,3,10,0,8,8,7,7,6,1,8,-27,-45,-57,-55,-52,-33,-64,-35,-37,-5,-71,-81,-79,-71,-93,-94,-85,-108,-97,-104,-105,-98,-172,0,-75,0,-170,-151,-184,-35,-38,0,-103,-63,-63,-63,-40,-29,-63,-52,-252,-250,-268,-264,-249,-244,-233,-247,-240,-239,-487,-530,-535,-486,-455,-475,-1045,-1068,-1024,-957,-787,-829,-2089,-312,-4820,-1325,-1246,-1030,-29965,-29965,-29966,-29966,-29966,-29967,-29966,-29968,-29970,-29971,-29971,-29972,-29972,-29972,-29972,-29973,-29971,-29970,-29970,-29970,-29968,-29964,-29963,-29965,-29965,-29966,-29966,-29964,-29964,-29964,-29962,-29961,-29942,-3381,-29969,-29971,-29971,-29971,-29971,-29972,-29973,-29973,-29976,-29975,-29975,-29976,-29979,-29980,-29981,-29982,-29982,-29983,-29983,-29984,-29984,-29985,-29985,-29986,-29986,-29987,-29987,-29988,-29988,-29987,-29987,-29988,-29988,-29989,-29989,-29990,-29993,-29994,-29997,-5447]} 1. e4 {[%emt 0:00:04]} e5 {[%emt 0:00:05]} 2. Nf3 {[%emt 0:00:23]} Nc6 {[%emt 0:00:06]} 3. Bc4 {[%emt 0:00:14]} Nf6 {[%emt 0:00:06]} 4. d3 {[%emt 0:00:15]} Be7 {[%emt 0:00:47]} 5. O-O {[%emt 0:00:41]} O-O {[%emt 0:00:35]} 6. Nc3 {[%emt 0:00:14][%cal Bb1c3,Bc3e2,Be2g3,Bg3f5][%mdl 32]} d6 {[%emt 0:01:22]} 7. a4 {[%emt 0:00:05] C55: Two Knights: 4 d3, 4 d4 exd4 5 e5 and Max Lange Attack.} a5 {[%emt 0:03:18] 7...Be6 is setting a new trend.} 8. Re1 {[%emt 0:00:34]} Nb4 {[%emt 0:11:09]} 9. Ne2 {[%emt 0:26:34] White is slightly better.} Bg4 {[%emt 0:04:04]} 10. Ng3 {[%emt 0:10:22] [#]} Nd7 $146 {[%emt 0:16:56]} ({Predecessor:} 10... c6 11. c3 d5 12. exd5 Bxf3 13. gxf3 cxd5 14. Bb5 Nc6 15. f4 exf4 16. Bxf4 Bd6 {1-0 (42) Van Foreest,J (2701)-Ivanisevic,I (2604) Terme Catez 2021}) 11. Nf5 {[%emt 0:09:27]} Bf6 {[%emt 0:02:36]} ({Black should try} 11... Bxf3 $11 12. gxf3 Bg5) 12. Ne3 $14 {[%emt 0:00:26]} Be6 {[%emt 0:01:47]} 13. Bxe6 {[%emt 0:13:09]} fxe6 {[%emt 0:00:10]} 14. c3 {[%emt 0:00:32][%cal Bc2c3,Bc3b4,Bb4b5][%mdl 32]} Nc6 {[%emt 0:02:16]} 15. Qb3 {[%emt 0:01:36]} Nc5 {[%emt 0:01:58][%csl LRb3,LRd3]} 16. Qc4 {[%emt 0:02:13]} Kh8 {[%emt 0:01:21]} 17. b4 {[%emt 0:11:26]} axb4 {[%emt 0:08:57]} 18. cxb4 {[%emt 0:00:45]} Nxa4 {[%emt 0:11:10]} 19. b5 {[%emt 0:04:10]} Nb6 {[%emt 0:02:18][%csl LRa1,LRc4]} 20. Rxa8 {[%emt 0:00:48]} Qxa8 {[%emt 0:00:07]} 21. Qxe6 {[%emt 0:04:52]} Nb4 {[%emt 0:01:02]} 22. Qb3 {[%emt 0:00:43]} Qa4 {[%emt 0:00:51]} 23. Qb1 {[%emt 0:00:40]} Qxb5 {[%emt 0:00:40]} 24. Bd2 {[%emt 0:01:36]} c5 {[%emt 0:00:15]} 25. Bxb4 {[%emt 0:00:26]} cxb4 {[%emt 0:01:56]} 26. Qb3 {[%emt 0:00:42]} Na4 {[%emt 0:08:27]} 27. Nc4 {[%emt 0:04:21]} Nc5 {[%emt 0:11:52]} 28. Nxd6 {[%emt 0:00:25]} Nxb3 {[%emt 0:00:48]} 29. Nxb5 {[%emt 0:00:03] Pair of Knights!} Nc5 {[%emt 0:00:33][%cal Bb3c5,Bc5d3,Bd3f4,Bf4h3][%mdl 32]} (29... Rc8 $5 {[%cal Rb3c1]} 30. d4 Nxd4 31. Nbxd4 exd4 $15) 30. Rb1 {[%emt 0:02:26]} (30. d4 $11 {keeps the balance.} exd4 31. e5) 30... Nxd3 $17 {[%emt 0:00:22]} 31. Kf1 {[%emt 0:00:46]} Rc8 {[%emt 0:02:46]} 32. Rb3 {[%emt 0:02:58]} Rc1+ {[%emt 0:02:01]} 33. Ke2 {[%emt 0:00:01]} Nf4+ {[%emt 0:00:48]} 34. Kd2 {[%emt 0:01:10]} Ra1 {[%emt 0:02:19] Black is more active.} 35. g3 {[%emt 0:00:53]} Ra2+ {[%emt 0:00:23]} 36. Ke1 {[%emt 0:00:33]} (36. Kc1 $17 {was worth a try.} Nh3 37. Rb2 Rxb2 38. Kxb2) 36... Ra1+ {[%emt 0:00:42]} (36... Ne6 $19 {is more deadly. Hoping for ...Nc5.} 37. Rxb4 Nc5) 37. Kd2 {[%emt 0:00:01]} Ra2+ {[%emt 0:00:08]} (37... Nh3 $1 $17 38. Rxb4 Ra2+ 39. Kd3 Nxf2+ 40. Kc4 Nxe4) 38. Ke1 $19 {[%emt 0:00:02]} Nh3 {[%emt 0:00:38]} 39. Nd6 {[%emt 0:01:51]} Ra1+ {[%emt 0:01:20]} (39... Rxf2 40. Nxb7 h6 41. Nd6 $11) (39... Nxf2 $19 {Strongly threatening ...Kg8.} 40. Nd2 Kg8 $1) 40. Ke2 $15 {[%emt 0:00:00]} Ra2+ {[%emt 0:00:00]} 41. Nd2 {[%emt 0:02:31]} (41. Ke3 $2 Nxf2 42. Nd2 (42. Rxb4 $2 Ng4+ 43. Kd3 Ra3+ 44. Kc4 Rxf3 $19) 42... Be7 $1 43. Nf7+ Kg8 44. Kxf2 Kxf7 $19) (41. Ke1 $1 $11 {was the only way to keep the balance.}) 41... Nxf2 {[%emt 0:05:32][%cal Of6e7] aiming for ...Be7!} 42. Rxb4 {[%emt 0:00:18] [#]} Be7 $1 {[%emt 0:04:30]} 43. Rc4 {[%emt 0:04:00] [#] White wants to mate with Rc8+.} h6 $1 {[%emt 0:02:17]} 44. Nf7+ {[%emt 0:00:49]} (44. Nf5 Bg5) 44... Kh7 {[%emt 0:00:08] And now ...b5 would win.} 45. Nxe5 $2 {[%emt 0:00:07] [#] Now White is beyond hope.} (45. Kxf2 $15 Rxd2+ 46. Ke3 Rxh2 47. Nxe5) 45... b5 $1 $19 {[%emt 0:00:39]} 46. Rd4 {[%emt 0:09:48] [#]} (46. Kxf2 bxc4) 46... Bc5 $1 {[%emt 0:02:29]} 47. Rd5 {[%emt 0:01:22]} Nxe4 $1 {[%emt 0:02:10] ...Nc3+ is the strong threat.} 48. Kd3 {[%emt 0:00:02] Inhibits Nc3.} Nf2+ {[%emt 0:01:08]} ({Weaker is} 48... Rxd2+ 49. Kxe4 Rxd5 50. Kxd5 $17) (48... Nxd2 49. Rxc5 b4 50. Rb5 $17) 49. Ke2 {[%emt 0:00:40] [#]} Bb4 $1 {[%emt 0:05:10]} 50. Kxf2 {[%emt 0:05:09]} (50. Nef3 Ne4 51. Rd4 Bxd2 52. Rxe4 Ba5+ 53. Kd1) 50... Rxd2+ {[%emt 0:00:05]} 51. Rxd2 {[%emt 0:00:05]} Bxd2 {[%emt 0:00:04][%mdl 4096] Endgame KB-KN} 52. Ke2 {[%emt 0:02:36]} Bc3 {[%emt 0:00:05]} 53. Nf3 {[%emt 0:00:08]} (53. Nd3 $142 Kg6 54. Nc1) 53... Kg6 {[%emt 0:01:10]} 54. Kd3 {[%emt 0:00:10]} b4 {[%emt 0:00:37]} 55. g4 {[%emt 0:00:05]} Kf6 {[%emt 0:00:17]} 56. h4 {[%emt 0:02:17]} Ke6 $2 {[%emt 0:00:10]} (56... g6 57. Ng1 Ke5) 57. Kc4 $2 {[%emt 0:04:02]} (57. h5) 57... g6 {[%emt 0:00:44][%cal Bg7g6,Bg6g5][%mdl 32] White must now prevent ...Kd6.} 58. Kd3 {[%emt 0:03:46]} Kd5 {[%emt 0:00:08]} 59. h5 {[%emt 0:00:45]} g5 {[%emt 0:06:36]} 60. Ng1 {[%emt 0:00:06]} Be5 {[%emt 0:00:22]} 61. Nf3 {[%emt 0:00:34]} b3 {[%emt 0:00:24][%cal Bb4b3,Bb3b2][%mdl 32]} 62. Nd2 {[%emt 0:00:38]} b2 {[%emt 0:00:15]} 63. Nb1 {[%emt 0:00:38]} Bg7 {[%emt 0:02:47]} 64. Nd2 {[%emt 0:00:23]} Ke5 {[%emt 0:00:28]} 65. Ke3 {[%emt 0:00:11]} Bf6 {[%emt 0:00:22]} 66. Nb1 {[%emt 0:00:16]} Be7 {[%emt 0:01:24]} 67. Nd2 {[%emt 0:00:04]} Kd5 {[%emt 0:00:26]} 68. Kd3 {[%emt 0:00:17]} Bb4 {[%emt 0:00:08]} 69. Nb1 {[%emt 0:00:07]} Kc5 {[%emt 0:00:15]} 70. Kc2 {[%emt 0:00:42]} Kc4 {[%emt 0:00:11]} 71. Kxb2 {[%emt 0:00:08]} Kd3 {[%emt 0:00:26]} 72. Kb3 {[%emt 0:00:06]} Be1 {[%emt 0:00:48]} 73. Na3 {[%emt 0:00:11]} Ke4 {[%emt 0:00:13]} 74. Nc2 {[%emt 0:03:13]} Bf2 {[%emt 0:00:50]} 75. Nb4 {[%emt 0:01:18]} Kf3 {[%emt 0:00:20]} (75... Bc5 $142 76. Nc6 Kf4 77. Kc4 Bb6 78. Kd3 Kxg4 79. Ne5+ Kxh5 80. Ke2 Bc7 81. Nf3 Kg4 82. Kf2 Bb6+ 83. Kg2 Kf4 84. Nh4 g4 85. Ng6+ Kg5 86. Ne5 h5 87. Kh1 Bd4 88. Nc6 Bf6 89. Kh2 h4 90. Nb4 Bd4 91. Nd3 h3 92. Kh1 Bb6 93. Kh2 Bc7+ 94. Kg1 g3 95. Ne1 Bb6+ 96. Kf1 Kg4 97. Nd3 g2+ 98. Ke1 g1=Q+ 99. Kd2 h2 100. Ne5+ Kf5 101. Nf3 Qf2+ 102. Kd3 h1=Q 103. Kc3 Qc1+ 104. Kb4 Qfc5+ 105. Kb3 Q5c4#) 76. Nd3 {[%emt 0:00:05]} Bg3 {[%emt 0:00:31] Black mates.} 77. Nc5 {[%emt 0:01:44]} Kxg4 {[%emt 0:00:25]} 78. Ne4 {[%emt 0:00:05]} Be5 {[%emt 0:00:29]} 79. Kc4 {[%emt 0:00:26]} Kxh5 {[%emt 0:00:18]} 80. Kd3 {[%emt 0:00:06]} Kg4 {[%emt 0:02:21]} 81. Ke3 {[%emt 0:00:03]} Kf5 {[%emt 0:00:09]} 82. Nf2 {[%emt 0:00:21]} h5 {[%emt 0:00:24][%cal Bh6h5,Bh5h4][%mdl 32]} 83. Kf3 {[%emt 0:00:27]} g4+ {[%emt 0:00:12]} 84. Kg2 {[%emt 0:00:06]} Bd4 {[%emt 0:00:26]} 85. Nh3 {[%emt 0:00:04]} Be3 {[%emt 0:00:53]} 86. Kg3 {[%emt 0:01:07]} Ke4 {[%emt 0:00:21]} ({And not} 86... gxh3 87. Kxh3 (87. Kh2 Bh6 $11) 87... Bh6 88. Kh2 $11) 87. Kg2 {[%emt 0:00:18]} h4 {[%emt 0:00:18]} 88. Kh1 {[%emt 0:00:34]} Kf3 {[%emt 0:00:15]} 89. Kh2 {[%emt 0:00:12]} g3+ {[%emt 0:03:51]} 90. Kh1 {[%emt 0:00:02]} Kg4 {[%emt 0:00:38]} 91. Kg2 {[%emt 0:00:10]} Bb6 {[%emt 0:00:30]} 92. Kh1 {[%emt 0:00:02]} Bc5 {[%emt 0:00:15]} 93. Kg2 {[%emt 0:00:03]} Be3 {[%emt 0:00:08]} 94. Kh1 {[%emt 0:00:55]} Kf3 {[%emt 0:00:10]} 95. Nf2 {[%emt 0:00:52]} gxf2 {[%emt 0:00:23] Weighted Error Value: White=0.55/Black=0.26 (precise)} 0-1

[Event "1st Chessable Sunway Formentera 2022"]
[Site "Formentera Punta Prima"]
[Date "2022.05.06"]
[Round "8.9"]
[White "Jarmula, Lukasz"]
[Black "Chkhaidze, Nikoloz"]
[Result "1-0"]
[ECO "B47"]
[WhiteElo "2459"]
[BlackElo "2301"]
[Annotator "TA"]
[PlyCount "89"]
[EventDate "2022.05.05"]
[EventType "swiss"]
[EventCountry "ESP"]
[SourceTitle "playchess.com"]
[Source "ChessBase"]
[SourceQuality "1"]
[TimeControl "40/5400+30:1800+30"]

{[%evp 11,89,14,9,21,31,20,16,25,32,31,24,22,32,19,24,7,10,9,10,14,9,7,67,64,77,88,81,16,18,11,22,0,57,49,77,68,118,104,102,104,91,90,74,71,70,79,100,54,69,24,25,22,28,28,29,28,79,31,97,48,414,54,141,46,44,0,0,0,0,0,56,64,464,463,462,417,29992,29993,29995,29996]} 1. e4 {[%emt 1:31:00]} c5 {[%emt 1:31:00]} 2. Nf3 {[%emt 0:00:30]} e6 {[%emt 0:00:30]} 3. d4 {[%emt 0:00:30]} cxd4 {[%emt 0:00:30]} 4. Nxd4 {[%emt 0:00:30]} Nc6 5. Nc3 {[%emt 0:00:30]} Qc7 {[%emt 0:01:00]} 6. Be2 {[%emt 0:00:30]} Nf6 {[%emt 0:00:30]} 7. Ndb5 {[%emt 0:00:30] B47: Sicilian: Taimanov: 5 Nc3 Qc7 6 f4, 6 g3 and 6 Be2.} Qb8 {[%emt 0:00:30]} 8. f4 {[%emt 0:00:30]} a6 {[%emt 0:00:30] [#]} 9. e5 $1 {[%emt 0:00:30] The position is equal.} axb5 {[%emt 0:00:30]} 10. exf6 {[%emt 0:00:30]} b4 {[%emt 0:00:30] [#]} 11. fxg7 $1 {[%emt 0:00:30]} Bxg7 {[%emt 0:00:30]} 12. Nb5 {[%emt 0:00:30]} d5 {[%emt 0:00:30] [#]} 13. a4 $146 {[%emt 0:00:30]} ({Predecessor:} 13. O-O Bd7 14. f5 Be5 15. h3 Rg8 16. Bg4 Ne7 17. fxe6 fxe6 18. Qd3 Qc8 19. Nd4 Qc4 20. Nxe6 Qxd3 21. cxd3 Rxg4 22. Rf8# {1-0 (22) Deac,B (2679)-Volokitin,A (2681) Chess.com INT 2022}) 13... bxa3 {[%emt 0:00:30]} 14. Rxa3 {[%emt 0:00:30]} Rxa3 {[%emt 0:00:30]} 15. bxa3 {[%emt 0:00:30]} O-O {[%emt 0:00:30]} 16. O-O {[%emt 0:00:30]} f5 {[%emt 0:00:30]} (16... Bd7 $11) 17. Be3 {[%emt 0:00:30]} Bd7 {[%emt 0:00:30]} 18. c4 {[%emt 0:00:30]} Ne7 {[%emt 0:00:30]} 19. Bc5 {[%emt 0:00:30] White is more active.} (19. a4 $16) 19... Bxb5 $11 {[%emt 0:00:30]} 20. cxb5 {[%emt 0:00:30]} Qc7 {[%emt 0:00:30]} 21. Bb4 {[%emt 0:00:30]} Re8 {[%emt 0:00:30]} (21... Bc3 $11) 22. Qd2 $14 {[%emt 0:00:30]} Qd7 {[%emt 0:00:30]} 23. a4 {[%emt 0:00:30]} Nc8 {[%emt 0:00:30]} (23... b6 $1 $14) 24. a5 {[%emt 0:00:30]} Nd6 {[%emt 0:00:30]} 25. Bxd6 {[%emt 0:00:30]} Qxd6 {[%emt 0:00:30]} 26. a6 {[%emt 0:00:30]} bxa6 {[%emt 0:00:30]} 27. bxa6 {[%emt 0:00:30]} Qc5+ {[%emt 0:00:30]} 28. Kh1 {[%emt 0:00:30]} Rb8 {[%emt 0:00:30]} 29. Qa2 {[%emt 0:00:30]} (29. Qd1 $16) 29... Qe3 {[%emt 0:00:30]} 30. Bb5 {[%emt 0:00:30]} Bd4 {[%emt 0:00:30] [#]} (30... Rxb5 $2 31. a7 Qb3 32. Qxb3 Rxb3 33. a8=Q+ $18) 31. Qc2 $1 {[%emt 0:00:30]} Kh8 {[%emt 0:00:30]} (31... Rxb5 $2 32. Qc8+ Kf7 33. Qd7+ Kf6 34. Qxb5 $18) (31... Bc3 32. Bd3) 32. Bd7 {[%emt 0:00:30]} Rg8 {[%emt 0:00:30]} 33. Qd1 {[%emt 0:00:30][%cal Od7e6] Black must now prevent Bxe6!} Rg6 {[%emt 0:00:30]} (33... Qe4 $11 34. Qf3 Ra8) 34. Qf3 {[%emt 0:00:30]} (34. Be8 $16 Rg7 35. Bh5) 34... Qd2 {[%emt 0:00:30]} (34... Qxf3 $14 35. gxf3 (35. Rxf3 Rg7 $11) 35... Kg7) 35. Bb5 {[%emt 0:00:30]} ({White should play} 35. g3 $16) 35... Kg7 $2 {[%emt 0:00:30][%mdl 8192] [#]} (35... Rg7 $14) 36. Rd1 $2 {[%emt 0:00:30]} (36. Be8 $1 $18 {[%cal Re8g6]}) 36... Qb2 {[%emt 0:00:30] [#]} (36... Qf2 $1 $14) 37. Bd3 {[%emt 0:00:30]} (37. Be8 $1 $16 {[%cal Re8g6]} Rf6 38. Qg3+ Kh8 39. Qe1) 37... Kf6 {[%emt 0:00:30]} 38. Qh3 {[%emt 0:00:30]} Qf2 {[%emt 0:00:30]} 39. Rf1 $36 {[%emt 0:00:30][%mdl 2048] White has some pressure. Really sharp!} Qd2 {[%emt 0:00:30]} 40. Bb5 {[%emt 0:00:30]} Kg7 {[%emt 0:00:30]} (40... Qc2 $11) 41. Be8 {[%emt 0:30:30]} Rf6 {[%emt 0:30:30][%mdl 8192]} ({Black should try} 41... Rg4 $14) 42. Qa3 $18 {[%emt 0:00:30] White wants to mate with a7.} Qe2 {[%emt 0:00:30][%cal Re2f1]} 43. Rc1 {[%emt 0:00:30] Threatening mate with a7.} Rf8 {[%emt 0:00:30]} (43... Qe3 $18 44. Rc7+ Kh6 45. Qxe3 Bxe3) 44. Qe7+ {[%emt 0:00:30]} Kg8 {[%emt 0:00:30] [#]} 45. Bf7+ $1 {[%emt 0:00:30][%mdl 512] Weighted Error Value: White=0.33/Black=0.61} 1-0

[Event "1st Chessable Sunway Formentera 2022"]
[Site "Formentera Punta Prima"]
[Date "2022.05.06"]
[Round "8.10"]
[White "Alinasab, Mobina"]
[Black "Park, Evan"]
[Result "1-0"]
[ECO "C72"]
[WhiteElo "2373"]
[BlackElo "2431"]
[Annotator "TA"]
[PlyCount "41"]
[EventDate "2022.05.05"]
[EventType "swiss"]
[EventCountry "ESP"]
[SourceTitle "playchess.com"]
[Source "ChessBase"]
[SourceQuality "1"]
[TimeControl "40/5400+30:1800+30"]

{[%evp 18,40,54,43,49,46,123,115,184,65,77,83,676,689,1054,1087,1071,1070,954,925,29978,29979,29990,29991,29999]} 1. e4 {[%emt 0:00:11]} e5 {[%emt 0:00:11]} 2. Nf3 {[%emt 0:00:24]} Nc6 {[%emt 0:00:04]} 3. Bb5 {[%emt 0:00:16][%cal Bf1b5,Bb5a4,Ba4b3][%mdl 32]} a6 {[%emt 0:00:03]} 4. Ba4 {[%emt 0:00:07]} d6 {[%emt 0:00:03]} 5. O-O {[%emt 0:00:07]} Bd7 {[%emt 0:02:21]} 6. d4 {[%emt 0:00:12]} b5 {[%emt 0:02:33]} 7. Bb3 {[%emt 0:00:07]} Nxd4 {[%emt 0:00:11]} 8. Nxd4 {[%emt 0:00:07]} exd4 {[%emt 0:00:02]} 9. c3 {[%emt 0:00:12]} dxc3 {[%emt 0:09:41]} 10. Qh5 {[%emt 0:00:08][%csl Gb3][%cal Rh5f7]} Qf6 {[%emt 0:18:48] C72: Ruy Lopez: Deferred Steinitz: 5 0-0.} 11. Nxc3 {[%emt 0:01:56][%cal Bb1c3,Bc3e4,Be4f6][%mdl 32] And now Nd5 would win.} ({But not} 11. Bg5 Qg6 12. Qxg6 hxg6 13. Nxc3 Be7 $11) 11... Ne7 {[%emt 0:05:25] [#]} (11... c6 $14) 12. Re1 $1 $16 {[%emt 0:20:25] Hoping for Nd5. White is more active.} g6 {[%emt 0:02:47] [#]} (12... c6 $16 {might work better.}) 13. e5 $146 {[%emt 0:30:10]} ({Predecessor:} 13. Nd5 gxh5 14. Nxf6+ Kd8 15. Bxf7 Bg7 16. Nxd7 Kxd7 17. Bxh5 Raf8 18. Re2 Ng6 19. Bg4+ {1-0 (36) De Firmian,N-Adler,B Gausdal 1982}) 13... dxe5 $14 {[%emt 0:12:03]} 14. Ne4 {[%emt 0:00:23]} ({Much weaker is} 14. Qxe5 Qxe5 15. Rxe5 Bg7 $11) 14... Qg7 {[%emt 0:00:04][%mdl 8192] Loses the game.} (14... gxh5 $2 15. Nxf6+ Kd8 16. Rd1 $18) (14... O-O-O $16) 15. Qf3 $18 {[%emt 0:02:57]} Bc6 {[%emt 0:02:13] [#] Threatens to win with ...f5.} 16. Bh6 $1 {[%emt 0:08:07][%mdl 512]} Qxh6 {[%emt 0:00:15]} (16... f5 17. Bxg7) 17. Qxf7+ {[%emt 0:00:02]} Kd8 {[%emt 0:00:06]} 18. Qe6 {[%emt 0:00:49] Intending Rad1+ and mate.} g5 {[%emt 0:04:53]} 19. Nf6 {[%emt 0:02:01] White mates.} Nc8 {[%emt 0:00:03]} 20. Qxc6 {[%emt 0:00:30][%csl Gf6][%cal Rc6e8]} Bd6 {[%emt 0:01:33]} 21. Qd7# {[%emt 0:00:09] Weighted Error Value: White=0.10 (very precise) /Black=1.18} 1-0